bitfinex/quotes_ETHUSD_20251117
["timestamp","ask_amount","ask_price","bid_price","bid_amount"]
[1763341239797,0.002,3146.6,3146.3,1.10739567]
[1763341240100,0.002,3146.6,3146.1,1.10739567]
[1763341240313,0.002,3146.5,3146.1,1.10739567]
[1763341240512,0.002,3146.5,3146.2,1.10739567]
[1763341240720,0.002,3146.5,3146.4,0.4846]
[1763341240922,0.002,3146.5,3146.3,0.15929957]
[1763341241222,0.002,3146.5,3146.1,1.10739567]
[1763341241627,0.002,3146.5,3146.2,1.10739567]
[1763341242030,0.4937,3146.5,3146.1,1.10739567]
[1763341242533,0.4633,3146.2,3146.0,1.10739567]
[1763341242722,1.1337408,3146.3,3145.7,1.10739567]
[1763341242924,0.4917,3146.2,3145.6,1.10739567]
[1763341243435,0.4917,3146.2,3145.7,1.10739567]
[1763341244131,0.6445,3145.8,3145.6,1.10739567]
[1763341244334,1.20098759,3146.2,3145.5,1.10739567]
[1763341244533,0.4917,3146.2,3145.5,1.10739567]
[1763341245539,0.002,3146.5,3146.0,1.10739567]
[1763341245727,0.4917,3146.4,3145.9,1.10739567]
[1763341246107,0.002,3146.5,3146.0,1.10739567]
[1763341246431,0.002,3146.5,3146.1,1.10739567]
[1763341246632,0.002,3146.5,3146.1,1.28269567]
[1763341246856,0.002,3146.5,3146.1,1.10739567]
[1763341249157,0.4633,3146.2,3146.1,1.10739567]
[1763341249458,0.002,3146.5,3146.1,1.10739567]
[1763341249835,0.4937,3146.5,3146.1,1.10739567]
[1763341250031,0.4937,3146.5,3146.0,1.10739567]
[1763341250032,0.4633,3146.2,3146.0,1.10739567]
[1763341250233,0.69739448,3146.5,3146.0,1.10739567]
[1763341250532,0.4633,3146.1,3145.9,1.10739567]
[1763341250747,0.4917,3146.4,3145.9,1.10739567]
[1763341250950,0.4917,3146.4,3146.0,1.10739567]
[1763341252760,0.4568,3146.1,3146.0,1.10739567]
[1763341252971,0.4568,3146.1,3145.9,1.10739567]
[1763341253140,0.4568,3146.1,3145.8,1.10739567]
[1763341253329,0.4568,3146.1,3145.9,1.10739567]
[1763341253763,0.002,3146.5,3145.9,1.10739567]
[1763341254062,0.4691,3146.3,3145.9,1.10739567]
[1763341254235,0.4568,3146.0,3145.8,1.10739567]
[1763341254449,0.4568,3146.0,3145.9,1.10739567]
[1763341254649,0.9259,3146.0,3145.9,1.10739567]
[1763341255390,0.4568,3146.0,3145.9,1.10739567]
[1763341255546,0.4691,3146.3,3145.9,0.27679447]
[1763341255866,0.4691,3146.2,3146.0,1.11083887]
[1763341256071,0.4691,3146.2,3145.9,1.11083887]
[1763341256435,0.4691,3146.2,3146.0,1.11083887]
[1763341256637,0.4568,3146.1,3146.0,1.11083887]
[1763341257474,0.8941136,3146.1,3146.0,1.11083887]
[1763341257633,0.8941136,3146.1,3145.8,1.660549]
[1763341257634,0.8941136,3146.1,3145.8,1.11083887]
[1763341257840,0.405504,3146.2,3145.8,1.11083887]
[1763341258088,0.874604,3146.2,3145.8,1.11083887]
[1763341258256,0.4568,3145.9,3145.8,1.11083887]
[1763341258473,0.4568,3145.9,3145.6,1.660549]
[1763341259487,0.576,3145.9,3145.6,1.660549]
[1763341259841,0.1829,3145.7,3145.6,1.660549]
[1763341260274,0.405504,3145.6,3145.5,1.11171005]
[1763341260478,0.405504,3145.6,3145.3,1.11171005]
[1763341260780,1.5392448,3145.3,3144.7,1.11271005]
[1763341260985,0.405504,3144.5,3144.4,0.001]
[1763341261139,0.567304,3144.5,3144.0,0.001]
[1763341261335,7.01117986,3144.1,3144.0,0.001]
[1763341261746,7.48027986,3144.1,3144.0,0.001]
[1763341261960,8.22830785,3144.1,3144.0,0.001]
[1763341262877,1.5437448,3144.1,3144.0,0.001]
[1763341263052,1.1337408,3144.1,3144.0,0.001]
[1763341263235,1.1337408,3144.1,3144.0,0.492]
[1763341263438,0.4691,3144.9,3144.0,0.492]
[1763341263439,5.65093506,3145.1,3144.0,0.9439]
[1763341263639,5.46743506,3145.6,3144.5,0.491]
[1763341263839,5.46943506,3146.1,3145.0,0.491]
[1763341264083,5.46943506,3146.1,3144.1,0.6339]
[1763341264084,0.5883,3145.9,3144.4,1.660549]
[1763341264442,0.1192,3145.9,3144.5,0.4519]
[1763341264643,0.4691,3145.8,3144.5,0.4519]
[1763341264846,0.1192,3145.9,3144.5,0.4519]
[1763341265188,0.67806351,3145.9,3144.6,0.2112449]
[1763341265543,0.67806351,3145.9,3144.7,0.4519]
[1763341266381,5.46743506,3145.6,3144.4,1.660549]
[1763341266542,1.1337408,3145.0,3144.3,1.660549]
[1763341266738,0.1021,3144.9,3144.3,0.2294449]
[1763341267447,5.46743506,3144.6,3144.0,0.001]
[1763341267676,1.1337408,3144.5,3144.1,0.182]
[1763341269381,1.1337408,3144.5,3144.0,0.001]
[1763341269777,0.1021,3144.9,3144.4,0.491]
[1763341269979,0.1021,3144.9,3144.1,0.182]
[1763341270142,1.1337408,3145.0,3144.2,0.4519]
[1763341271686,0.0377,3145.9,3144.9,0.491]
[1763341271886,0.0377,3145.9,3145.0,0.491]
[1763341272096,5.46743506,3146.3,3145.8,0.182]
[1763341272260,0.002,3146.6,3145.8,0.182]
[1763341272460,0.002,3146.6,3146.0,0.491]
[1763341272461,0.407504,3146.6,3146.0,0.491]
[1763341272807,0.002,3146.6,3146.0,0.491]
[1763341273123,0.002,3146.6,3146.4,0.673]
[1763341273249,0.002,3146.6,3146.4,0.182]
[1763341274083,0.002,3146.6,3146.1,0.4519]
[1763341274084,0.002,3146.6,3146.1,0.6339]
[1763341274381,0.002,3146.6,3146.1,0.182]
[1763341275344,0.002,3146.6,3145.5,2.294449]
[1763341275542,1.1337408,3146.2,3145.6,0.4519]
[1763341275770,1.1357408,3146.6,3146.1,0.182]
[1763341276076,1.1337408,3146.1,3145.5,0.182]
[1763341276243,1.80582686,3146.1,3145.2,0.4656]
[1763341276445,1.1337408,3145.6,3144.9,0.6476]
[1763341276864,1.1337408,3145.6,3145.0,0.4656]
[1763341277071,1.1337408,3145.6,3144.9,0.182]
[1763341277494,1.1337408,3145.6,3144.9,0.6476]
[1763341277706,1.5392448,3146.0,3144.9,0.6476]
[1763341278006,0.75259506,3145.9,3145.0,0.4656]
[1763341278505,0.75259506,3145.9,3145.1,0.1973]
[1763341279470,0.75259506,3145.9,3145.2,0.4656]
[1763341280472,5.31461978,3146.1,3145.2,0.4656]
[1763341280668,5.31661978,3146.5,3145.2,0.4656]
[1763341280868,1.1337408,3146.4,3145.2,0.4656]
[1763341281105,0.002,3146.5,3145.2,0.4656]
[1763341281291,0.002,3146.5,3146.4,0.6476]
[1763341281495,0.002,3146.5,3145.5,1.660549]
[1763341281690,0.002,3146.5,3146.4,0.6716]
[1763341282918,0.002,3146.5,3146.4,1.1358]
[1763341284604,0.002,3146.5,3146.4,2.796349]
[1763341284803,0.002,3146.5,3146.4,3.0759839]
[1763341285284,0.002,3146.5,3146.4,1.1358]
[1763341285525,0.002,3146.5,3146.4,0.1807]
[1763341285842,0.0734,3146.5,3146.0,20.6296]
[1763341286125,0.5643,3146.5,3145.6,0.4642]
[1763341286296,0.002,3146.5,3145.6,0.4642]
[1763341286823,0.002,3146.5,3145.7,0.2124749]
[1763341287122,0.002,3146.5,3145.7,0.6766749]
[1763341287325,0.002,3146.5,3145.7,0.4642]
[1763341288152,0.002,3146.5,3145.4,1.660549]
[1763341288153,5.31461978,3146.4,3145.4,1.660549]
[1763341288311,5.31461978,3146.4,3145.5,0.4642]
[1763341289796,1.1337408,3146.3,3145.5,0.4642]
[1763341290424,0.002,3146.5,3146.2,0.6716]
[1763341290725,0.002,3146.5,3146.4,0.4909]
[1763341291221,0.002,3146.5,3146.4,0.9551]
[1763341291422,0.002,3146.5,3146.4,0.4909]
[1763341291587,0.002,3146.5,3146.4,0.9551]
[1763341292219,0.002,3146.5,3146.4,1.58944697]
[1763341292423,0.002,3146.5,3146.2,0.1807]
[1763341292819,0.002,3146.5,3145.9,1.09854697]
[1763341293261,0.002,3146.5,3146.0,1.09854697]
[1763341293853,0.002,3146.5,3146.1,0.1807]
[1763341294052,0.002,3146.5,3145.9,1.09854697]
[1763341294445,0.002,3146.5,3145.9,1.42087657]
[1763341294658,0.002,3146.5,3145.9,1.09854697]
[1763341295452,5.31461978,3146.4,3145.8,1.09854697]
[1763341295824,5.31461978,3146.4,3145.4,0.4642]
[1763341295825,5.31461978,3146.4,3145.7,1.09854697]
[1763341296027,1.1337408,3146.3,3145.7,1.09854697]
[1763341296324,1.1337408,3146.3,3145.6,1.09854697]
[1763341296557,1.1337408,3146.3,3145.4,2.124749]
[1763341296863,1.1337408,3146.3,3145.4,2.36045839]
[1763341297972,0.002,3146.5,3145.5,0.4642]
[1763341297973,1.1357408,3146.5,3145.5,0.4642]
[1763341298123,1.1357408,3146.5,3145.5,2.124749]
[1763341298329,1.1357408,3146.5,3145.6,0.4642]
[1763341299159,1.1357408,3146.5,3145.6,2.124749]
[1763341299972,1.1357408,3146.5,3145.1,2.41965434]
[1763341299973,1.1337408,3146.0,3145.3,1.660549]
[1763341300173,1.1337408,3146.0,3145.1,0.1983]
[1763341300174,1.1337408,3146.0,3145.4,1.660549]
[1763341300675,1.1337408,3146.4,3145.9,0.4909]
[1763341300839,1.1337408,3146.4,3146.0,0.4909]
[1763341301182,1.1337408,3146.4,3145.8,1.660549]
[1763341302458,1.1337408,3146.4,3145.9,2.124749]
[1763341302624,1.1337408,3146.4,3145.9,1.660549]
[1763341302830,0.4952,3146.3,3145.8,1.660549]
[1763341303246,1.1337408,3146.4,3145.8,1.660549]
[1763341304283,0.6532,3145.9,3145.5,1.660549]
[1763341304496,0.1842,3145.9,3145.4,1.660549]
[1763341304857,0.1842,3145.9,3145.2,1.660549]
[1763341304858,0.4952,3145.8,3145.2,1.660549]
[1763341305062,1.86782278,3145.9,3145.2,1.660549]
[1763341305797,5.86450176,3145.9,3145.2,1.660549]
[1763341305967,1.1337408,3146.0,3145.3,2.124749]
[1763341306166,1.1337408,3146.0,3145.3,0.4642]
[1763341306378,1.1337408,3146.0,3145.3,2.124749]
[1763341306750,0.185,3145.9,3145.2,1.660549]
[1763341306947,1.1337408,3145.5,3145.2,1.660549]
[1763341307186,1.77857686,3145.5,3145.1,0.1817]
[1763341307385,1.1337408,3145.5,3145.1,0.1817]
[1763341307895,1.1337408,3145.5,3145.1,0.6459]
[1763341308098,1.1337408,3145.5,3145.1,0.001]
[1763341311838,5.31461978,3145.2,3145.1,0.001]
[1763341312043,0.405504,3144.8,3144.6,1.660549]
[1763341312242,6.45276058,3144.6,3144.5,0.001]
[1763341312744,1.1337408,3144.6,3144.5,0.001]
[1763341313245,0.1877,3145.3,3144.5,0.4675]
[1763341313430,0.488,3145.6,3144.5,0.9462]
[1763341313431,1.1337408,3145.4,3144.5,0.9462]
[1763341313735,1.1337408,3145.4,3144.6,0.2607749]
[1763341314141,1.1337408,3145.4,3145.0,0.001]
[1763341316653,0.488,3145.3,3145.0,0.001]
[1763341316853,0.0875,3145.1,3145.0,0.001]
[1763341317266,0.5715,3145.1,3145.0,0.001]
[1763341318431,0.0875,3145.1,3145.0,0.001]
[1763341319561,0.002,3146.8,3145.0,0.001]
[1763341319562,5.31461978,3145.9,3145.0,0.9462]
[1763341319769,5.31461978,3145.9,3145.3,0.4665]
[1763341320066,1.1337408,3145.8,3145.3,0.4665]
[1763341320369,5.31661978,3146.4,3145.8,0.4665]
[1763341320575,1.1337408,3146.3,3145.8,0.4665]
[1763341320927,0.002,3146.4,3146.2,0.6547]
[1763341321151,0.002,3146.4,3146.2,0.1882]
[1763341321466,0.002,3146.4,3146.3,0.9452]
[1763341321667,0.002,3146.8,3146.5,0.4665]
[1763341321873,5.31461978,3148.3,3146.8,0.4665]
[1763341322074,5.31461978,3148.3,3147.1,1.65003165]
[1763341322075,5.31461978,3147.8,3147.1,1.65003165]
[1763341322273,5.31461978,3147.3,3146.6,1.65003165]
[1763341322658,5.31461978,3147.3,3146.4,0.4787]
[1763341322659,0.1877,3147.2,3146.4,0.4787]
[1763341322970,0.1877,3147.2,3146.6,1.65003165]
[1763341322971,1.1337408,3147.2,3146.6,1.65003165]
[1763341323133,1.1337408,3147.2,3146.7,0.16500317]
[1763341323334,0.1877,3147.7,3146.7,0.16500317]
[1763341323335,5.31461978,3147.8,3147.1,0.4665]
[1763341323736,1.1337408,3147.7,3147.1,0.4665]
[1763341324073,6.38288176,3148.3,3147.2,0.4787]
[1763341324380,1.1337408,3148.2,3147.2,0.4787]
[1763341324679,0.75166226,3148.1,3147.2,0.4787]
[1763341325061,5.31461978,3148.3,3147.2,0.4787]
[1763341325477,1.1337408,3148.2,3147.2,0.4787]
[1763341325854,5.31461978,3148.3,3147.2,0.4787]
[1763341326246,1.1337408,3148.2,3147.2,0.4787]
[1763341326581,5.31461978,3148.5,3147.2,0.4787]
[1763341326778,1.1337408,3148.4,3147.3,0.21287317]
[1763341326967,5.31461978,3148.0,3147.0,1.65003165]
[1763341327139,5.31461978,3148.0,3146.9,0.4787]
[1763341327339,1.1337408,3148.4,3147.9,0.4665]
[1763341328380,5.31461978,3149.6,3148.3,0.6547]
[1763341328583,5.31461978,3149.6,3148.9,0.4665]
[1763341329081,5.31461978,3149.6,3148.9,0.9452]
[1763341329285,5.0,3150.0,3148.9,0.9452]
[1763341329486,5.31461978,3149.8,3149.0,0.6669]
[1763341329688,5.31461978,3149.8,3149.0,0.1882]
[1763341329879,1.1337408,3149.7,3149.0,0.1882]
[1763341330076,1.6217408,3149.7,3148.3,0.6669]
[1763341330278,5.31461978,3149.3,3148.3,0.6669]
[1763341330464,5.84608176,3149.3,3148.3,0.6669]
[1763341330879,5.31461978,3149.3,3148.4,0.4787]
[1763341331051,5.31461978,3149.7,3148.4,0.4787]
[1763341331456,5.31461978,3149.7,3148.5,0.405504]
[1763341331664,5.31461978,3149.7,3148.4,0.4787]
[1763341332670,0.1877,3149.8,3148.2,20.6296]
[1763341332671,0.1877,3148.5,3148.2,20.6296]
[1763341333056,0.1877,3148.5,3147.0,0.1882]
[1763341333057,0.6757,3148.5,3147.4,0.4787]
[1763341333297,0.6757,3148.5,3147.4,0.311274]
[1763341333555,5.31461978,3148.3,3147.0,0.1882]
[1763341333989,5.31461978,3148.7,3147.1,0.405504]
[1763341334191,5.86485176,3148.7,3147.0,1.3219408]
[1763341334491,0.488,3148.6,3147.0,1.3219408]
[1763341335054,0.63414408,3149.8,3148.5,0.1882]
[1763341335486,5.94876386,3149.8,3148.6,0.4787]
[1763341335891,0.61364639,3149.7,3148.6,0.4787]
[1763341336097,1.1337408,3149.7,3148.6,0.4787]
[1763341336797,0.002,3149.8,3148.6,0.4787]
[1763341338470,1.1337408,3149.5,3148.5,0.1882]
[1763341338676,1.1337408,3149.5,3148.2,0.6565]
[1763341338889,0.4919,3149.4,3148.0,20.6296]
[1763341339097,1.1337408,3149.0,3147.2,0.4642]
[1763341339267,1.1337408,3149.0,3147.3,3.358]
[1763341339456,0.6767,3148.9,3147.4,1.1337408]
[1763341339654,0.6767,3148.9,3147.2,0.4642]
[1763341339655,0.1848,3148.9,3147.2,0.4642]
[1763341339894,1.1337408,3149.0,3147.2,0.4642]
[1763341340211,0.4919,3149.3,3147.6,1.5392448]
[1763341340356,1.1337408,3149.5,3147.8,0.405504]
[1763341340556,1.1337408,3149.5,3147.8,1.5392448]
[1763341340849,0.4521,3149.8,3148.0,0.405504]
[1763341340850,0.002,3149.8,3148.0,0.405504]
[1763341340965,0.002,3149.8,3148.2,0.405504]
[1763341341468,0.002,3149.8,3148.3,0.4944]
[1763341341669,0.63405408,3149.8,3148.3,0.4944]
[1763341342165,0.002,3149.8,3148.4,0.405504]
[1763341342670,0.002,3149.8,3148.5,0.4944]
[1763341343201,0.002,3149.8,3148.6,0.405504]
[1763341343374,0.002,3149.8,3148.6,1.5392448]
[1763341343571,0.002,3149.8,3148.8,0.405504]
[1763341343771,0.002,3149.8,3148.9,0.4944]
[1763341344302,0.002,3149.8,3149.0,0.405504]
[1763341344516,0.002,3150.2,3149.2,0.405504]
[1763341345016,0.002,3150.2,3149.4,0.405504]
[1763341345309,0.002,3150.2,3149.5,1.1337408]
[1763341345476,0.002,3150.2,3149.6,0.89361635]
[1763341345875,0.002,3150.2,3149.4,20.6296]
[1763341346076,0.002,3150.2,3149.2,0.4944]
[1763341347363,0.002,3150.2,3149.3,0.405504]
[1763341347667,0.002,3150.2,3149.2,0.4944]
[1763341347972,0.002,3150.2,3148.9,0.4944]
[1763341347973,0.1887,3149.9,3148.9,0.4944]
[1763341348178,0.002,3150.2,3149.0,3.35951488]
[1763341348404,0.002,3150.2,3149.0,1.1337408]
[1763341348610,0.002,3150.2,3149.1,0.4944]
[1763341348999,0.002,3150.2,3149.3,20.6296]
[1763341349202,0.002,3150.2,3149.4,0.405504]
[1763341349415,0.002,3150.2,3149.4,0.899904]
[1763341349614,0.002,3150.2,3149.6,1.5392448]
[1763341349900,0.002,3150.2,3149.8,0.405504]
[1763341350111,0.002,3150.2,3149.9,21.124]
[1763341350734,5.002,3150.0,3149.9,21.124]
[1763341351100,5.002,3150.0,3149.6,1.1337408]
[1763341351301,5.002,3150.0,3149.7,1.0540126]
[1763341351834,5.002,3150.0,3149.8,0.4944]
[1763341353716,5.002,3150.0,3149.7,0.5596126]
[1763341353898,5.002,3150.0,3149.5,20.6296]
[1763341354098,5.002,3150.0,3149.5,0.4944]
[1763341354536,5.002,3150.0,3149.6,0.4944]
[1763341354834,5.002,3150.0,3149.1,21.124]
[1763341355041,5.002,3150.0,3149.2,2.77180317]
[1763341355529,5.002,3150.0,3149.3,0.4944]
[1763341356914,5.002,3150.0,3149.1,1.65003165]
[1763341356915,0.1887,3149.9,3149.1,1.65003165]
[1763341357119,0.6787,3149.9,3148.8,1.65003165]
[1763341357420,0.6787,3149.9,3148.9,0.16500317]
[1763341357620,0.49,3149.8,3148.5,1.65003165]
[1763341357815,0.49,3149.8,3148.4,1.65003165]
[1763341357816,1.1337408,3149.6,3148.4,1.65003165]
[1763341358048,1.1337408,3149.6,3148.5,1.09884529]
[1763341358248,0.1887,3149.9,3148.3,1.65003165]
[1763341358249,0.49,3149.5,3148.6,1.09884529]
[1763341358435,0.49,3149.5,3148.7,1.09884529]
[1763341359172,0.49,3149.5,3148.6,1.09884529]
[1763341359335,5.44935654,3148.7,3148.6,1.09884529]
[1763341359522,1.1337408,3148.6,3147.9,20.6296]
[1763341359865,0.49,3148.5,3147.9,20.6296]
[1763341360018,0.49,3148.5,3148.0,0.82470393]
[1763341360019,5.44935654,3148.2,3148.0,0.82470393]
[1763341360222,1.5392448,3148.1,3147.4,0.82570393]
[1763341360421,1.5392448,3148.1,3147.4,0.001]
[1763341360422,5.44935654,3147.5,3147.4,0.001]
[1763341360824,0.49,3147.5,3147.4,0.001]
[1763341361038,2.0292448,3147.5,3147.4,0.001]
[1763341361938,1.6237408,3147.5,3147.4,0.001]
[1763341362484,2.0292448,3148.0,3147.4,0.001]
[1763341363141,0.49,3148.0,3147.4,0.001]
[1763341363371,5.44935654,3148.1,3147.4,0.001]
[1763341363596,1.6237408,3148.0,3147.4,0.001]
[1763341363971,0.49,3147.9,3147.4,0.001]
[1763341364508,1.1337408,3148.0,3147.4,0.001]
[1763341364708,0.49,3148.3,3147.4,0.001]
[1763341365007,0.65237408,3148.3,3147.4,0.001]
[1763341365396,0.49,3148.2,3147.4,0.001]
[1763341366609,0.49,3148.2,3147.0,1.09984529]
[1763341366610,1.1337408,3147.5,3147.0,0.82570393]
[1763341366781,0.405504,3147.9,3147.0,0.82570393]
[1763341366782,6.58309734,3147.1,3147.0,0.001]
[1763341366984,7.24140707,3147.1,3147.0,0.001]
[1763341367190,7.07309734,3147.1,3147.0,0.001]
[1763341367875,1.6237408,3147.1,3147.0,0.001]
[1763341368330,0.49,3147.1,3147.0,0.001]
[1763341368679,0.405504,3147.0,3146.9,0.001]
[1763341369194,0.895504,3147.0,3146.9,0.001]
[1763341369406,1.09842848,3147.0,3146.9,0.001]
[1763341369606,1.1337408,3147.2,3146.9,0.001]
[1763341370022,0.16237408,3148.3,3146.9,0.001]
[1763341370023,1.1337408,3147.7,3146.9,0.001]
[1763341370186,0.49,3147.1,3146.9,0.001]
[1763341370513,1.1337408,3147.2,3146.9,0.001]
[1763341371330,1.1337408,3147.7,3146.9,0.001]
[1763341371716,0.4902,3147.6,3146.9,0.001]
[1763341372407,5.44935654,3147.8,3146.9,0.4879]
[1763341372607,1.1337408,3147.7,3146.9,0.4879]
[1763341373220,1.6239408,3147.7,3146.9,0.001]
[1763341373421,1.19752973,3147.6,3146.9,0.001]
[1763341373940,0.4902,3147.5,3146.9,0.001]
[1763341374909,0.3422,3147.0,3146.9,0.001]
[1763341375142,0.4902,3147.5,3146.9,0.001]
[1763341376042,0.4902,3148.0,3146.9,0.4879]
[1763341376243,0.65259408,3148.0,3146.9,0.4879]
[1763341376414,0.4902,3148.0,3146.9,0.4879]
[1763341377209,1.1337408,3148.2,3146.9,0.4879]
[1763341378015,1.6239408,3148.2,3146.9,0.4879]
[1763341378443,0.4902,3148.1,3146.9,0.4879]
[1763341378651,1.1337408,3147.7,3146.9,0.001]
[1763341378856,0.3422,3147.0,3146.9,0.001]
[1763341379158,0.405504,3148.2,3146.9,0.001]
[1763341379159,1.1337408,3147.7,3146.9,0.001]
[1763341379522,1.6239408,3147.7,3146.9,0.001]
[1763341379722,1.1337408,3147.7,3146.9,0.001]
[1763341379961,0.4902,3147.6,3146.9,0.001]
[1763341380133,1.19752973,3147.6,3146.9,0.001]
[1763341380329,1.1337408,3147.7,3146.9,0.001]
[1763341380721,5.93955654,3148.3,3146.9,0.4879]
[1763341380925,1.1337408,3148.2,3146.9,1.31260393]
[1763341381135,0.4902,3148.3,3147.0,0.82470393]
[1763341381369,0.64258082,3149.4,3147.0,0.82470393]
[1763341381370,1.1337408,3147.9,3147.0,0.82470393]
[1763341381582,5.44935654,3147.5,3146.9,0.001]
[1763341381727,0.3422,3147.1,3146.9,0.001]
[1763341382074,0.3436,3147.0,3146.9,0.001]
[1763341382227,1.1337408,3147.4,3146.9,0.001]
[1763341382428,0.4902,3147.3,3146.9,0.001]
[1763341383137,1.1337408,3147.4,3146.9,0.001]
[1763341383319,0.4902,3147.3,3146.9,0.001]
[1763341383747,1.19752973,3147.3,3146.9,0.001]
[1763341384058,1.1337408,3147.4,3146.9,0.4879]
[1763341384242,6.58309734,3148.0,3147.2,0.1919]
[1763341384728,5.44935654,3148.0,3147.2,1.50350393]
[1763341384923,0.1887,3148.8,3147.3,0.82470393]
[1763341385257,5.44935654,3148.5,3147.6,0.82470393]
[1763341385557,0.4902,3148.7,3147.8,0.82470393]
[1763341385724,0.4902,3148.7,3147.9,0.82470393]
[1763341386073,1.1337408,3148.4,3147.9,0.82470393]
[1763341386272,5.44935654,3148.5,3148.1,0.82470393]
[1763341386476,1.1337408,3148.4,3148.1,0.82470393]
[1763341387034,1.6239408,3148.4,3148.1,0.82470393]
[1763341387273,1.6239408,3148.4,3148.2,0.82470393]
[1763341387476,1.1337408,3148.4,3148.2,0.82470393]
[1763341387663,1.1337408,3148.4,3148.1,0.82470393]
[1763341387664,0.8324,3148.3,3148.1,0.82470393]
[1763341388174,0.4936,3148.2,3148.0,1.09884529]
[1763341388939,0.002,3148.4,3148.1,1.1678]
[1763341389139,0.002,3148.4,3148.3,0.489]
[1763341389658,0.002,3148.4,3148.3,0.9759]
[1763341390234,0.002,3148.4,3148.3,0.489]
[1763341390434,0.002,3148.4,3148.3,1.65187799]
[1763341390634,0.002,3148.4,3148.3,0.1651878]
[1763341390867,0.002,3148.4,3148.3,0.489]
[1763341391070,0.002,3148.4,3148.3,0.9759]
[1763341391676,0.002,3148.4,3148.3,0.489]
[1763341391874,0.002,3148.4,3148.3,0.9759]
[1763341392375,0.002,3148.4,3148.3,3.17295586]
[1763341392674,0.002,3148.4,3148.3,3.50944145]
[1763341393363,0.002,3148.4,3148.3,1.31238559]
[1763341393776,0.002,3148.4,3148.3,3.50944145]
[1763341395257,0.002,3148.4,3148.3,1.31238559]
[1763341397399,0.7402,3148.4,3148.3,1.09424167]
[1763341397551,0.7402,3148.4,3148.2,0.82092051]
[1763341398067,0.0027,3148.3,3148.1,0.82092051]
[1763341398260,0.0027,3148.3,3146.9,0.001]
[1763341398261,0.002,3148.4,3148.2,0.82092051]
[1763341398884,6.04768399,3148.3,3148.1,0.82092051]
[1763341399067,0.0027,3148.1,3147.9,0.82092051]
[1763341399266,0.4617,3148.0,3147.9,0.82092051]
[1763341399874,5.30948399,3148.3,3147.7,1.09424167]
[1763341400104,0.4906,3148.2,3147.9,0.82178634]
[1763341400402,0.6895,3148.2,3147.9,0.82178634]
[1763341400893,0.1989,3148.2,3147.9,0.82178634]
[1763341401185,0.6895,3148.2,3148.0,0.82178634]
[1763341401987,0.2399,3148.1,3148.0,0.82178634]
[1763341402352,1.3432884,3148.1,3148.0,0.82178634]
[1763341402662,0.419004,3148.0,3147.0,1.09424167]
[1763341402866,0.419004,3148.0,3146.4,2.19705586]
[1763341402867,5.56048399,3147.1,3146.7,1.09424167]
[1763341403088,0.0025,3147.0,3146.6,21.72484167]
[1763341403250,5.30948399,3147.1,3146.6,1.09524167]
[1763341403452,5.30948399,3147.1,3146.6,0.001]
[1763341403649,5.84043239,3147.1,3146.6,0.001]
[1763341404078,1.8619408,3147.0,3146.6,0.001]
[1763341404287,1.8619408,3147.0,3146.3,0.001]
[1763341404288,0.2492,3146.6,3146.3,0.001]
[1763341404779,0.005,3146.4,3146.3,0.001]
[1763341405401,5.49748399,3146.7,3146.3,0.001]
[1763341405402,0.188,3146.7,3146.3,0.001]
[1763341405618,1.1337408,3146.8,3146.3,0.001]
[1763341406514,5.30948399,3146.4,3146.3,0.001]
[1763341407026,1.1337408,3146.7,3146.3,0.4869]
[1763341407384,1.1337408,3146.7,3146.3,0.9458]
[1763341407606,1.1337408,3146.7,3146.3,0.001]
[1763341408414,0.4795,3146.6,3146.3,0.001]
[1763341408793,0.2517,3146.4,3146.3,0.001]
[1763341408993,0.4795,3146.6,3146.3,0.001]
[1763341409194,0.2517,3146.4,3146.3,0.001]
[1763341409505,5.56118399,3146.4,3146.3,0.001]
[1763341409721,6.03838399,3146.4,3146.3,0.001]
[1763341409882,5.30948399,3146.4,3146.3,0.001]
[1763341410080,6.03838399,3146.4,3146.3,0.001]
[1763341411212,0.889804,3146.3,3145.9,0.001]
[1763341411416,0.405504,3145.9,3145.6,0.001]
[1763341411716,1.1337408,3145.6,3145.0,20.6306]
[1763341411917,6.68842479,3145.1,3145.0,20.6306]
[1763341412213,7.57342879,3145.1,3145.0,0.001]
[1763341412432,7.57342879,3145.1,3144.7,0.001]
[1763341412433,1.5392448,3145.0,3144.7,0.001]
[1763341412731,0.1976,3144.8,3144.7,0.001]
[1763341413030,0.41923448,3144.8,3144.7,0.001]
[1763341413199,0.89873448,3144.8,3144.7,0.001]
[1763341413995,0.405504,3144.5,3144.4,0.001]
[1763341414217,6.44322479,3144.1,3144.0,0.001]
[1763341414419,7.34524727,3144.1,3144.0,0.001]
[1763341414597,7.82474727,3144.1,3144.0,0.001]
[1763341415320,7.82474727,3144.1,3143.7,0.001]
[1763341415321,1.5392448,3144.0,3143.7,0.001]
[1763341415633,1.5392448,3144.0,3142.6,0.001]
[1763341415634,0.405504,3143.7,3142.6,0.001]
[1763341415839,1.5392448,3143.0,3142.6,0.001]
[1763341416034,6.44322479,3142.7,3142.6,0.001]
[1763341416395,6.44322479,3142.7,3142.5,0.001]
[1763341416396,7.32822879,3142.7,3142.5,0.001]
[1763341416603,0.405504,3142.5,3141.4,0.001]
[1763341416913,1.6132408,3142.6,3141.4,0.001]
[1763341416914,6.84872879,3142.0,3141.4,0.001]
[1763341417300,6.84872879,3141.5,3141.4,0.001]
[1763341417504,6.94822879,3141.5,3141.4,0.001]
[1763341417703,7.42772879,3141.5,3141.4,0.001]
[1763341418040,8.17050167,3141.5,3141.4,0.001]
[1763341419623,7.76499767,3141.5,3141.4,0.001]